fUSD/lending_fUSD_20250410
["ID","MTS","AMOUNT","RATE_DAILY","PERIOD"]
[357643239,1744263111747,-1592.0,0.00040821,2]
[357643240,1744263111762,-547.28,0.00040821,2]
[357643241,1744263111778,-913.24,0.00040821,2]
[357643242,1744263111793,-522.51,0.00040821,2]
[357643243,1744263111810,-500.0,0.00040821,2]
[357643244,1744263111825,-500.0,0.00040821,2]
[357643245,1744263111840,-500.0,0.00040821,2]
[357643246,1744263111857,-1171.35,0.00040821,2]
[357643247,1744263111873,-534.67536066,0.00040821,2]
[357643248,1744263111888,-1033.06,0.00040821,2]
[357643249,1744263111903,-1595.19,0.00040821,2]
[357643250,1744263111919,-500.0,0.00040821,2]
[357643251,1744263111935,-500.0,0.00040821,2]
[357643252,1744263111952,-500.0,0.00040821,2]
[357643253,1744263111970,-500.0,0.00040821,2]
[357643254,1744263111985,-500.0,0.00040821,2]
[357643255,1744263112002,-584.7,0.00040821,2]
[357643256,1744263112019,-1947.41,0.00040821,2]
[357643257,1744263112035,-500.0,0.00040821,2]
[357643258,1744263112051,-500.0,0.00040821,2]
[357643259,1744263112067,-500.0,0.00040821,2]
[357643260,1744263112083,-926.43,0.00040821,2]
[357643261,1744263112098,-500.0,0.00040821,2]
[357643262,1744263112114,-500.0,0.00040821,2]
[357643263,1744263112129,-500.0,0.00040821,2]
[357643264,1744263112145,-610.03,0.00040821,2]
[357643265,1744263112160,-981.36,0.00040821,2]
[357643266,1744263112176,-500.0,0.00040821,2]
[357643267,1744263112192,-319.212095,0.00040821,14]
[357643268,1744263112208,-793.73,0.00040821,2]
[357643269,1744263112223,-319.212095,0.00040821,14]
[357643270,1744263112239,-727.92,0.00040821,2]
[357643271,1744263112254,-683.98,0.00040821,2]
[357643272,1744263112274,-500.0,0.00040821,2]
[357643273,1744263112291,-573.05,0.00040821,2]
[357643274,1744263112307,-653.48,0.00040821,2]
[357643275,1744263112323,-500.0,0.00040821,2]
[357643276,1744263112339,-872.19,0.00040821,2]
[357643277,1744263112355,-585.0,0.00040821,2]
[357643278,1744263112371,-500.0,0.00040821,2]
[357643279,1744263112392,-578.0,0.00040821,2]
[357643280,1744263112410,-1098.43,0.00040821,2]
[357643281,1744263112428,-557.08,0.00040821,2]
[357643282,1744263112444,-500.0,0.00040821,2]
[357643283,1744263112461,-500.0,0.00040821,2]
[357643284,1744263112478,-500.0,0.00040821,2]
[357643285,1744263112494,-775.81,0.00040821,2]
[357643286,1744263112511,-500.0,0.00040821,2]
[357643287,1744263112526,-500.0,0.00040821,2]
[357643288,1744263112543,-827.44,0.00040821,2]
[357643289,1744263112559,-500.0,0.00040821,2]
[357643290,1744263112575,-2624.4,0.00040821,2]
[357643291,1744263112592,-2889.02,0.00040821,2]
[357643292,1744263112608,-500.0,0.00040821,2]
[357643293,1744263112625,-500.0,0.00040821,2]
[357643294,1744263112852,-500.0,0.00040821,2]
[357643295,1744263112867,-595.49,0.00040821,2]
[357643296,1744263112876,-1057.22,0.00040821,2]
[357643297,1744263112886,-208.352474,0.00040821,14]
[357643298,1744263112895,-151.0,0.00040821,14]
[357643299,1744263112905,-208.352474,0.00040821,14]
[357643300,1744263112914,-547.12,0.00040821,2]
[357643301,1744263112923,-500.0,0.00040821,2]
[357643302,1744263112932,-1644.09,0.00040821,2]
[357643303,1744263112942,-535.22,0.00040821,2]
[357643304,1744263112951,-727.43,0.00040821,2]
[357643305,1744263112960,-799.77,0.00040821,2]
[357643306,1744263112969,-959.4,0.00040821,2]
[357643307,1744263112978,-1648.43,0.00040821,2]
[357643308,1744263112987,-738.51,0.00040821,2]
[357643309,1744263112996,-608.9,0.00040821,2]
[357643310,1744263113005,-500.0,0.00040821,2]
[357643311,1744263113015,-699.08,0.00040821,2]
[357643312,1744263113024,-885.56,0.00040821,2]
[357643313,1744263113033,-624.37,0.00040821,2]
[357643314,1744263113042,-500.0,0.00040821,2]
[357643315,1744263113051,-1033.25,0.00040821,2]
[357643316,1744263113061,-2525.7,0.00040821,2]
[357643317,1744263113070,-1305.17,0.00040821,2]
[357643318,1744263113079,-151.0,0.00040821,14]
[357643319,1744263113089,-500.0,0.00040821,2]
[357643320,1744263113098,-500.0,0.00040821,2]
[357643321,1744263113106,-571.02,0.00040821,2]
[357643322,1744263113116,-151.0,0.00040821,14]
[357643323,1744263113126,-500.0,0.00040821,2]
[357643324,1744263113135,-917.16,0.00040821,2]
[357643325,1744263113144,-912.29,0.00040821,2]
[357643326,1744263113153,-500.0,0.00040821,2]
[357643327,1744263113162,-552.15,0.00040821,2]
[357643328,1744263113171,-500.0,0.00040821,2]
[357643329,1744263113181,-500.0,0.00040821,2]
[357643330,1744263113190,-500.0,0.00040821,2]
[357643331,1744263113199,-500.0,0.00040821,2]
[357643332,1744263113208,-508.79,0.00040821,2]
[357643333,1744263113217,-500.03,0.00040821,2]
[357643334,1744263113226,-1408.64,0.00040821,2]
[357643335,1744263113235,-1556.73,0.00040821,2]
[357643336,1744263113244,-1635.81,0.00040821,2]
[357643337,1744263113253,-933.27,0.00040821,2]
[357643338,1744263113262,-1187.18,0.00040821,2]
[357643339,1744263113271,-833.81,0.00040821,2]
[357643340,1744263113281,-985.06,0.00040821,2]
[357643341,1744263113290,-2294.31,0.00040821,2]
[357643342,1744263113299,-2356.85,0.00040821,2]
[357643343,1744263113308,-986.77,0.00040821,2]
[357643344,1744263113318,-1743.374356,0.00040821,2]
[357643345,1744263113328,-2875.93,0.00040821,2]
[357643346,1744263113337,-500.0,0.00040821,2]
[357643347,1744263113346,-1214.83,0.00040821,2]
[357643348,1744263113356,-151.0,0.00040821,14]
[357643349,1744263113365,-1153.71,0.00040821,2]
[357643350,1744263113379,-180.186855,0.00040821,2]
[357643351,1744263113389,-957.89,0.00040821,2]
[357643352,1744263113398,-500.0,0.00040821,2]
[357643353,1744263113407,-424.322939,0.00040821,14]
[357643354,1744263113417,-4529.73,0.00040821,2]
[357643355,1744263113427,-2077.03,0.00040821,2]
[357643356,1744263113436,-424.322939,0.00040821,14]
[357643357,1744263113446,-2584.34,0.00040821,2]
[357643358,1744263113457,-500.0,0.00040821,2]
[357643359,1744263113467,-500.0,0.00040821,2]
[357643360,1744263113476,-870.1,0.00040821,2]
[357643361,1744263113485,-151.0,0.00040821,14]
[357643362,1744263113495,-946.03,0.00040821,2]
[357643363,1744263113504,-1925.56,0.00040821,2]
[357643364,1744263113513,-1077.99,0.00040821,2]
[357643365,1744263113522,-500.0,0.00040821,2]
[357643366,1744263113531,-511.65,0.00040821,2]
[357643367,1744263113541,-4644.2,0.00040821,2]
[357643368,1744263113551,-633.69,0.00040821,2]
[357643369,1744263113561,-500.0,0.00040821,2]
[357643370,1744263113570,-1112.85,0.00040821,2]
[357643371,1744263113579,-1029.45,0.00040821,2]
[357643372,1744263113589,-500.0,0.00040821,2]
[357643373,1744263113598,-151.0,0.00040821,14]
[357643374,1744263113607,-647.69,0.00040821,2]
[357643375,1744263113616,-3585.681999,0.00040821,2]
[357643376,1744263113625,-500.0,0.00040821,2]
[357643377,1744263113635,-151.0,0.00040821,14]
[357643378,1744263113644,-2403.73,0.00040821,2]
[357643379,1744263113654,-909.21,0.00040821,2]
[357643380,1744263113663,-1120.09,0.00040821,2]
[357643381,1744263113673,-1686.73,0.00040821,2]
[357643382,1744263113683,-879.89,0.00040821,2]
[357643383,1744263113692,-808.95,0.00040821,2]
[357643384,1744263113702,-832.56,0.00040821,2]
[357643385,1744263113712,-874.26,0.00040821,2]
[357643386,1744263113722,-1157.43,0.00040821,2]
[357643387,1744263113731,-718.2,0.00040821,2]
[357643388,1744263113740,-581.124785,0.00040821,2]
[357643389,1744263113750,-500.0,0.00040821,2]
[357643390,1744263113759,-1407.72,0.00040821,2]
[357643391,1744263113769,-1039.49,0.00040821,2]
[357643392,1744263113778,-7215.56,0.00040821,2]
[357643393,1744263113787,-500.0,0.00040821,2]
[357643394,1744263113796,-575.22,0.00040821,2]
[357643395,1744263113806,-3881.0,0.00040821,2]
[357643396,1744263113815,-1613.58,0.00040821,2]
[357643397,1744263113825,-898.25,0.00040821,2]
[357643398,1744263113834,-772.7,0.00040821,2]
[357643399,1744263113844,-500.0,0.00040821,2]
[357643400,1744263113853,-500.0,0.00040821,2]
[357643401,1744263113863,-1979.36,0.00040821,2]
[357643402,1744263113873,-8078.39,0.00040821,2]
[357643403,1744263113882,-42424.6,0.00040821,2]
[357643404,1744263113892,-690.89,0.00040821,2]
[357643405,1744263113901,-500.0,0.00040821,2]
[357643406,1744263113910,-1112.76,0.00040821,2]
[357643407,1744263113919,-1039.69,0.00040821,2]
[357643408,1744263113930,-500.0,0.00040821,2]
[357643409,1744263113939,-1185.95,0.00040821,2]
[357643410,1744263113949,-634.68,0.00040821,2]
[357643411,1744263113958,-518.49,0.00040821,2]
[357643412,1744263113967,-500.0,0.00040821,2]
[357643413,1744263113977,-1287.64,0.00040821,2]
[357643414,1744263113986,-965.31,0.00040821,2]
[357643415,1744263113995,-910.06,0.00040821,2]
[357643416,1744263114005,-1004.75,0.00040821,2]
[357643417,1744263114015,-1961.21,0.00040821,2]
[357643418,1744263114025,-500.0,0.00040821,2]
[357643419,1744263114034,-500.0,0.00040821,2]
[357643420,1744263114044,-1538.53,0.00040821,2]
[357643421,1744263114053,-599.76,0.00040821,2]
[357643422,1744263114064,-500.0,0.00040821,2]
[357643423,1744263114074,-1367.6,0.00040821,2]
[357643424,1744263114084,-500.0,0.00040821,2]
[357643425,1744263114093,-877.44,0.00040821,2]
[357643426,1744263114103,-991.6,0.00040821,2]
[357643427,1744263114112,-2578.25,0.00040821,2]
[357643428,1744263114122,-693.73,0.00040821,2]
[357643429,1744263114132,-500.0,0.00040821,2]
[357643430,1744263114141,-629.13,0.00040821,2]
[357643431,1744263114151,-500.0,0.00040821,2]
[357643432,1744263114161,-685.43,0.00040821,2]
[357643433,1744263114170,-1216.37,0.00040821,2]
[357643434,1744263114180,-500.0,0.00040821,2]
[357643435,1744263114189,-151.0,0.00040821,14]
[357643436,1744263114199,-500.0,0.00040821,2]
[357643437,1744263114209,-1214.66,0.00040821,2]
[357643438,1744263114220,-500.0,0.00040821,2]
[357643439,1744263114230,-4565.3,0.00040821,2]
[357643440,1744263114239,-1048.07,0.00040821,2]
[357643441,1744263114249,-500.0,0.00040821,2]
[357643442,1744263114258,-1039.16,0.00040821,2]
[357643443,1744263114267,-1216.68,0.00040821,2]
[357643444,1744263114277,-500.0,0.00040821,2]
[357643445,1744263114287,-1205.91,0.00040821,2]
[357643446,1744263114297,-2916.32,0.00040821,2]
[357643447,1744263114306,-4891.3,0.00040821,2]
[357643448,1744263114316,-2357.14,0.00040821,2]
[357643449,1744263114327,-632.73,0.00040821,2]
[357643450,1744263114336,-1190.59,0.00040821,2]
[357643451,1744263114346,-500.0,0.00040821,2]
[357643452,1744263114355,-757.09,0.00040821,2]
[357643453,1744263114365,-603.06,0.00040821,2]
[357643454,1744263114376,-812.34,0.00040821,2]
[357643455,1744263114388,-2654.658363,0.00040821,14]
[357643456,1744263114397,-573.66,0.00040821,2]
[357643457,1744263114407,-23785.76,0.00040821,2]
[357643458,1744263114418,-500.0,0.00040821,2]
[357643459,1744263114428,-2083.77,0.00040821,2]
[357643460,1744263114438,-1281.13,0.00040821,2]
[357643461,1744263114447,-500.0,0.00040821,2]
[357643462,1744263114460,-2654.658363,0.00040821,14]
[357643463,1744263114470,-1005.53,0.00040821,2]
[357643464,1744263114479,-745.91,0.00040821,2]
[357643465,1744263114489,-2143.43,0.00040821,2]
[357643466,1744263114498,-1089.01,0.00040821,2]
[357643467,1744263114507,-1159.32,0.00040821,2]
[357643468,1744263114517,-573.78,0.00040821,2]
[357643469,1744263114526,-500.0,0.00040821,2]
[357643470,1744263114536,-646.02,0.00040821,2]
[357643471,1744263114546,-272.21296768,0.00040821,2]
[357643472,1744263114555,-566.91,0.00040821,2]
[357643473,1744263114565,-1218.11,0.00040821,2]
[357643474,1744263114574,-500.0,0.00040821,2]
[357643475,1744263114584,-3910.55936,0.00040821,2]
[357643476,1744263118540,-1326.0,0.0001837,2]
[357643477,1744263118550,-1326.0,0.0002137,2]
[357643478,1744263118559,-159.56,0.00030323,2]
[357643479,1744263118568,-685.19980076,0.00034247,7]
[357643480,1744263118577,-685.19980076,0.00034247,7]
[357643481,1744263118587,-685.19980076,0.00034247,7]
[357643482,1744263118596,-685.19980076,0.00034247,7]
[357643483,1744263118605,-685.19980076,0.00034247,7]
[357643484,1744263118615,-168.97282524,0.00034773,2]
[357643485,1744263118625,-500.0,0.00038356,2]
[357643486,1744263118637,-1030.74,0.00038356,2]
[357643487,1744263118646,-500.0,0.00038356,2]
[357643488,1744263118656,-868.47,0.0003863,2]
[357643489,1744263118665,-500.0,0.0003863,2]
[357643490,1744263118674,-1030.74,0.0003863,2]
[357643491,1744263118684,-868.47,0.00038904,2]
[357643492,1744263118693,-500.0,0.00038904,2]
[357643493,1744263118702,-1030.74,0.00038904,2]
[357643494,1744263118712,-868.47,0.00039178,2]
[357643495,1744263118721,-151.98489841,0.00039178,2]
[357643496,1744263118760,-392.67202612,0.00039178,2]
[357643497,1744263118770,-1030.74,0.00039178,2]
[357643498,1744263118779,-868.47,0.00039452,2]
[357643499,1744263118788,-868.47,0.00039726,2]
[357643500,1744263118797,-252.54797388,0.0004,2]
[357643501,1744263118937,-599.29078866,0.0003863,2]
[357643502,1744263118947,-615.92202612,0.0004,2]
[357643503,1744263118957,-868.47,0.00040273,2]
[357643504,1744263118967,-868.47,0.00040547,2]
[357643505,1744263118977,-25211.72064,0.00040821,2]
[357643506,1744263118986,-500.0,0.00040821,2]
[357643507,1744263118995,-500.0,0.00040821,2]
[357643508,1744263119004,-500.0,0.00040821,2]
[357643509,1744263119014,-151.0,0.00040821,14]
[357643510,1744263119023,-865.9,0.00040821,2]
[357643511,1744263119032,-516.84,0.00040821,2]
[357643512,1744263119042,-500.0,0.00040821,2]
[357643513,1744263119052,-695.78,0.00040821,2]
[357643514,1744263119061,-819.97,0.00040821,2]
[357643515,1744263119071,-2739.29,0.00040821,2]
[357643516,1744263119080,-1018.51,0.00040821,2]
[357643517,1744263119090,-500.0,0.00040821,2]
[357643518,1744263119099,-575.63,0.00040821,2]
[357643519,1744263119109,-500.0,0.00040821,2]
[357643520,1744263119119,-500.0,0.00040821,2]
[357643521,1744263119128,-1378.7,0.00040821,2]
[357643522,1744263119139,-1133.4,0.00040821,2]
[357643523,1744263119148,-500.0,0.00040821,2]
[357643524,1744263119157,-500.0,0.00040821,2]
[357643525,1744263119167,-832.63,0.00040821,2]
[357643526,1744263119177,-21395.75,0.00040821,2]
[357643527,1744263119186,-500.0,0.00040821,2]
[357643528,1744263119197,-500.0,0.00040821,2]
[357643529,1744263119206,-500.0,0.00040821,2]
[357643530,1744263119216,-500.0,0.00040821,2]
[357643531,1744263119225,-2087.42,0.00040821,2]
[357643532,1744263119235,-1170.86,0.00040821,2]
[357643533,1744263119244,-3014.44,0.00040821,2]
[357643534,1744263119253,-500.0,0.00040821,2]
[357643535,1744263119262,-127600.19360577,0.00040821,2]
[357643536,1744263122126,-500.0,0.00043187,30]
[357643537,1744263122274,-599.54982566,0.00049999,120]
[357643538,1744263122301,-599.54982566,0.00049999,120]
[357643539,1744263122328,-599.54982566,0.00049999,120]
[357643540,1744263122354,-599.54982566,0.00049999,120]
[357643541,1744263122383,-599.54982566,0.00049999,120]
[357643542,1744263122410,-599.54982566,0.00049999,120]
[357643543,1744263122437,-599.54982566,0.00049999,120]
[357643544,1744263122464,-599.54982566,0.00049999,120]
[357643545,1744263122491,-599.54982566,0.00049999,120]
[357643546,1744263122518,-599.54982566,0.00049999,120]
[357643547,1744263122545,-599.54982566,0.00049999,120]
[357643548,1744263122571,-599.54982566,0.00049999,120]
[357643549,1744263122597,-599.54982566,0.00049999,120]
[357643550,1744263122625,-599.54982566,0.00049999,120]
[357643551,1744263122653,-599.54982566,0.00049999,120]
[357643552,1744263122679,-599.54982566,0.00049999,120]
[357643553,1744263122706,-599.54982566,0.00049999,120]
[357643554,1744263122733,-599.54982566,0.00049999,120]
[357643555,1744263122760,-599.54982566,0.00049999,120]
[357643556,1744263122787,-599.54982566,0.00049999,120]
[357643557,1744263122814,-599.54982566,0.00049999,120]
[357643558,1744263122840,-599.54982566,0.00049999,120]
[357643559,1744263122868,-1000.0,0.00051749,120]
[357643560,1744263122897,-500.0,0.00054794,120]
[357643561,1744263122924,-500.0,0.00054794,120]
[357643562,1744263122950,-500.0,0.00054794,120]
[357643563,1744263122974,-500.0,0.00054794,120]
[357643564,1744263122999,-500.0,0.00054794,120]
[357643565,1744263123029,-500.0,0.00054794,120]
[357643566,1744263123055,-500.0,0.00054794,120]
[357643567,1744263123082,-500.0,0.00054794,120]
[357643568,1744263123108,-500.0,0.00054794,120]
[357643569,1744263123135,-345.75793792,0.00054794,120]
[357643570,1744263123164,-1000.0,0.00056454,120]
[357643571,1744263123360,-557149.9870451,0.000665,120]
[357643572,1744263123391,-100000.0,0.0006699,120]
[357643573,1744263123418,-73874.47191836,0.0006699,120]
[357643574,1744263123447,-1000.0,0.00066999,120]
[357643575,1744263123476,-25000.0,0.00067,120]
[357643576,1744263123504,-273.593981,0.00067,90]
[357643577,1744263123535,-1000000.0,0.00067,120]
[357643578,1744263123562,-10000.0,0.00067,120]
[357643579,1744263123590,-10261.39,0.00067,60]
[357643580,1744263123618,-170.86,0.00067426,120]
[357643581,1744263123647,-550.95,0.00067426,120]
[357643582,1744263123673,-3277.49092491,0.00067485,119]
[357643583,1744263123703,-200.0,0.00067549,119]
[357643584,1744263123729,-200.0,0.00067556,119]
[357643585,1744263123759,-200.0,0.00067578,119]
[357643586,1744263123785,-3277.49092491,0.0006759,119]
[357643587,1744263123813,-247.18625615,0.00067592,119]
[357643588,1744263123841,-639.02980631,0.00067656,119]
[357643589,1744263123867,-2515.87252703,0.0006769,119]
[357643590,1744263123896,-323.46175264,0.00067696,119]
[357643591,1744263123922,-38040.73584618,0.000677,120]
[357643592,1744263123951,-100465.33714099,0.00067711,119]
[357643593,1744263123978,-1110.87706654,0.00067717,119]
[357643594,1744263124007,-639.02980631,0.00067727,119]
[357643595,1744263124034,-4201.91144219,0.0006774,119]
[357643596,1744263124062,-100465.33714099,0.00067749,119]
[357643597,1744263124088,-4201.91144219,0.0006776,119]
[357643598,1744263124116,-1343.18226206,0.00067799,119]
[357643599,1744263124147,-2515.87252703,0.00067838,119]
[357643600,1744263124176,-247.18625615,0.00067844,119]
[357643601,1744263124204,-1110.87706654,0.00067862,119]
[357643602,1744263124233,-1343.18226206,0.00067868,119]
[357643603,1744263124260,-200.0,0.00067964,119]
[357643604,1744263124287,-323.46175264,0.00067984,119]
[357643605,1744263124315,-25000.0,0.00068,120]
[357643606,1744263124341,-358.58022891,0.00068,120]
[357643607,1744263124367,-5601.1010806,0.00068,120]
[357643608,1744263124399,-10000.0,0.00068,120]
[357643609,1744263124427,-300.0,0.00068,120]
[357643610,1744263124455,-90000.0,0.00068,120]
[357643611,1744263124484,-150.0,0.00068,120]
[357643612,1744263124511,-44629.0,0.00068,120]
[357643613,1744263124541,-192916.23,0.00068,120]
[357643614,1744263124570,-201.27234585,0.00068,120]
[357643615,1744263124598,-150.0,0.000681,120]
[357643616,1744263124629,-150.0,0.00068375,120]
[357643617,1744263124660,-564637.27509392,0.00068483,120]
[357643618,1744263134418,-500.0,0.00049999,120]
[357643619,1744263134448,-339.36975601,0.00049999,120]
[357643620,1744263134483,-1000000.0,0.00058,120]
[357643621,1744263134510,-1000000.0,0.00059,120]
[357643622,1744263134537,-999160.63024399,0.0006,120]
[357643623,1744263139646,-839.36975601,0.0006,120]
[357643624,1744263139675,-1000000.0,0.00061,120]
[357643625,1744263139706,-1616963.07888208,0.00068483,120]
[357643626,1744263139735,-503.82874435,0.00068493,120]
[357643627,1744263139764,-999.0,0.00068493,120]
[357643630,1744263638199,168.391,0.00027,120]
[357643632,1744264037136,-250.0,0.00019,2]
[357643633,1744264037160,-237.81580301,0.00019899,2]
[357643634,1744264037182,-4144.0,0.00019972,2]
[357643635,1744264037203,-150.0,0.0002,2]
[357643636,1744264037226,-150.0,0.0002,2]
[357643637,1744264037247,-150.0,0.0002,2]
[357643638,1744264037268,-1059.49548375,0.0002,2]
[357643639,1744264037290,-1769.95809675,0.0002,2]
[357643640,1744264037311,-323.95390112,0.0002,2]
[357643641,1744264037332,-300.0,0.00021,2]
[357643642,1744264037353,-252.14511615,0.00021106,2]
[357643643,1744264037373,-150.0,0.00021917,2]
[357643644,1744264037393,-262.429949,0.00022561,2]
[357643645,1744264037413,-517.891,0.00022674,2]
[357643646,1744264037433,-4138.0,0.00022972,2]
[357643647,1744264037453,-150.99,0.00022972,2]
[357643648,1744264037475,-350.0,0.00023,2]
[357643649,1744264037494,-150.0,0.00023287,2]
[357643650,1744264037514,-2879.21016121,0.00024321,2]
[357643651,1744264037535,-150.0,0.00024657,2]
[357643652,1744264037556,-400.0,0.00025,2]
[357643653,1744264037576,-150.0,0.00026027,2]
[357643654,1744264037598,-227.87,0.00026849,2]
[357643655,1744264037619,-450.0,0.00027,2]
[357643656,1744264037640,-150.0,0.00027397,2]
[357643657,1744264037661,-237.81580299,0.00027854,2]
[357643658,1744264037682,-150.0,0.00028767,2]
[357643659,1744264037705,-500.0,0.00029,2]
[357643660,1744264037726,-150.0,0.00030136,2]
[357643661,1744264037748,-514.21394384,0.00030709,2]
[357643662,1744264037770,-200.0,0.00031,2]
[357643663,1744264037793,-550.0,0.00031,2]
[357643664,1744264037814,-173.40240671,0.00031289,2]
[357643665,1744264037835,-150.0,0.00031506,2]
[357643666,1744264037855,-538.82,0.000316,2]
[357643667,1744264037876,-150.0,0.00032,30]
[357643668,1744264037896,-168.391,0.000323,120]
[357643669,1744264037918,-280.2886281,0.00032562,2]
[357643670,1744264037939,-227.87,0.00032646,2]
[357643671,1744264037960,-302.83,0.00032662,2]
[357643672,1744264037981,-200.0,0.00032829,7]
[357643673,1744264038002,-150.0,0.00032876,2]
[357643674,1744264038023,-600.0,0.00033,2]
[357643675,1744264038047,-23900.0,0.0003337,2]
[357643676,1744264038068,-1448.17,0.000335,2]
[357643677,1744264038089,-250.0,0.00033602,2]
[357643678,1744264038110,-982.72569906,0.0003374,2]
[357643679,1744264038130,-302.33,0.00034194,5]
[357643680,1744264038151,-150.0,0.00034246,2]
[357643681,1744264038172,-1692.35,0.00034649,2]
[357643682,1744264038193,-150.0,0.00034979,7]
[357643683,1744264038214,-182.064,0.00034979,7]
[357643684,1744264038234,-160.93,0.00035,2]
[357643685,1744264038256,-303.68,0.00035051,5]
[357643686,1744264038277,-200.0,0.000351,2]
[357643687,1744264038297,-150.0,0.00035616,2]
[357643688,1744264038318,-300.897,0.00035754,43]
[357643689,1744264038339,-1448.17,0.00035763,2]
[357643690,1744264038359,-237.81580299,0.00035809,2]
[357643691,1744264038381,-304.08,0.00035909,5]
[357643692,1744264038402,-1008.73488819,0.00036377,30]
[357643693,1744264038422,-305.8,0.00036757,5]
[357643694,1744264038442,-1616.47,0.000368,7]
[357643695,1744264038463,-150.0,0.00036986,2]
[357643696,1744264038485,-203.24071976,0.000372,103]
[357643697,1744264038508,-168.97282524,0.00037395,2]
[357643698,1744264038528,-167.651937,0.0003748,2]
[357643699,1744264038548,-168.391,0.000376,120]
[357643700,1744264038569,-1000.0,0.00037636,2]
[357643701,1744264038589,-305.17,0.00037673,5]
[357643702,1744264038611,-1448.17,0.00038027,2]
[357643703,1744264038634,-303.42,0.00038178,5]
[357643704,1744264038656,-2500.0,0.00038246,2]
[357643705,1744264038678,-525.18300191,0.00038246,45]
[357643706,1744264038704,-5160.9318,0.00038256,2]
[357643707,1744264038726,-158.21,0.00038336,2]
[357643708,1744264038748,-500.0,0.00038341,15]
[357643709,1744264038770,-1818.23365415,0.00038341,15]
[357643710,1744264038794,-1818.23365415,0.00038341,15]
[357643711,1744264038819,-556.15169557,0.00038341,15]
[357643712,1744264038840,-1818.23365415,0.00038341,15]
[357643713,1744264038861,-1818.23365415,0.00038341,15]
[357643714,1744264038883,-1818.23365415,0.00038341,15]
[357643715,1744264038903,-1818.23365415,0.00038341,15]
[357643716,1744264038925,-1818.23365415,0.00038341,15]
[357643717,1744264038947,-1818.23365415,0.00038341,15]
[357643718,1744264038968,-1818.23365415,0.00038341,15]
[357643719,1744264038989,-1818.23365415,0.00038341,15]
[357643720,1744264039010,-1818.23365415,0.00038341,15]
[357643721,1744264039032,-1818.23365415,0.00038341,15]
[357643722,1744264039053,-1818.23365415,0.00038341,15]
[357643723,1744264039075,-1818.23365415,0.00038341,15]
[357643724,1744264039096,-1818.23365415,0.00038341,15]
[357643725,1744264039118,-1818.23365415,0.00038341,15]
[357643726,1744264039139,-1818.23365415,0.00038341,15]
[357643727,1744264039160,-1818.23365415,0.00038341,15]
[357643728,1744264039181,-2743.80234147,0.00038341,15]
[357643729,1744264039204,-2743.80234147,0.00038341,15]
[357643730,1744264039226,-2743.80234147,0.00038341,15]
[357643731,1744264039248,-2743.80234147,0.00038341,15]
[357643732,1744264039269,-2743.80234147,0.00038341,15]
[357643733,1744264039291,-2743.80234147,0.00038341,15]
[357643734,1744264039313,-2743.80234147,0.00038341,15]
[357643735,1744264039335,-2743.80234147,0.00038341,15]
[357643736,1744264039358,-2743.80234147,0.00038341,15]
[357643737,1744264039380,-141965.22759478,0.00038346,3]
[357643738,1744264043092,-166.7240938,0.00038246,2]
[357643739,1744264043113,-39535.97147405,0.00038346,3]
[357643740,1744264046106,-26844.69636382,0.00038346,3]
[357643741,1744264049213,-5179.65951583,0.00038346,3]